bitfinex/quotes_ETHUSD_20251130
["timestamp","ask_amount","ask_price","bid_price","bid_amount"]
[1764523002121,0.4894,3042.8,3042.0,0.72559411]
[1764523002318,0.4757,3042.1,3041.9,6.78283808]
[1764523002560,0.4757,3042.0,3041.9,4.95815771]
[1764523003057,0.9651,3042.0,3041.9,4.95815771]
[1764523003942,0.9651,3042.0,3041.9,4.34465371]
[1764523004143,0.9651,3042.0,3041.9,4.22101315]
[1764523007271,0.9651,3042.0,3041.9,4.62651715]
[1764523007473,0.9651,3042.0,3041.9,4.95815771]
[1764523010461,0.9651,3042.2,3042.1,0.73714456]
[1764523010637,0.9651,3042.2,3042.1,4.74994158]
[1764523012675,0.4591,3042.5,3042.2,1.13109811]
[1764523012873,0.002,3042.8,3042.3,0.208]
[1764523013274,0.4981,3042.4,3042.3,0.208]
[1764523013781,0.4169,3042.2,3042.1,2.78720291]
[1764523014480,0.876,3042.2,3042.0,3.49526397]
[1764523014654,0.4973,3042.1,3042.0,3.49526397]
[1764523014854,0.9564,3042.1,3042.0,3.49526397]
[1764523020770,0.9564,3042.1,3042.0,0.208]
[1764523022255,0.9564,3042.1,3042.0,3.49531097]
[1764523025890,0.002,3042.2,3042.0,4.66687818]
[1764523026187,0.002,3042.2,3042.1,1.05723467]
[1764523026955,0.002,3042.2,3042.1,1.13869411]
[1764523027254,0.002,3042.2,3042.1,1.68189811]
[1764523027461,0.002,3042.2,3042.1,2.09499811]
[1764523027656,0.002,3042.2,3042.1,5.71384158]
[1764523027964,0.9592,3042.2,3042.1,4.74994158]
[1764523028189,0.5001,3042.2,3042.1,4.74994158]
[1764523028390,0.002,3042.2,3042.1,4.7828136]
[1764523028788,0.002,3042.2,3042.1,5.1959136]
[1764523029180,0.002,3042.2,3042.1,5.41507304]
[1764523029359,0.002,3042.2,3042.1,5.7467136]
[1764523032567,0.002,3042.2,3042.1,5.3336136]
[1764523033202,0.002,3042.2,3042.1,12.30338031]
[1764523033374,0.002,3042.2,3042.1,13.58566885]
[1764523034091,0.002,3042.2,3042.1,9.37068429]
[1764523034268,0.002,3042.2,3042.1,9.15074158]
[1764523034469,0.002,3042.2,3042.1,9.56384158]
[1764523035409,0.002,3042.2,3042.1,9.15074158]
[1764523035794,0.002,3042.2,3042.1,9.35874158]
[1764523036806,0.002,3042.2,3042.1,5.92184158]
[1764523037007,0.002,3042.2,3042.1,5.4039136]
[1764523037202,0.002,3042.2,3042.1,4.9908136]
[1764523038395,0.5001,3042.2,3042.1,4.95794158]
[1764523038997,0.002,3042.2,3042.1,4.9908136]
[1764523040122,0.5001,3042.2,3042.1,4.9908136]
[1764523040281,0.002,3042.2,3042.1,4.95794158]
[1764523040683,0.5001,3042.2,3042.1,4.95794158]
[1764523040884,0.002,3042.2,3042.1,5.4039136]
[1764523041088,0.002,3042.2,3042.1,5.07227304]
[1764523041829,0.002,3042.2,3042.1,5.20997304]
[1764523042419,0.002,3042.2,3042.1,4.65917304]
[1764523042626,0.002,3042.2,3042.1,5.07227304]
[1764523043788,0.002,3042.2,3042.1,4.65917304]
[1764523045140,0.002,3042.2,3042.1,5.07227304]
[1764523046222,0.4131,3042.6,3042.2,0.405504]
[1764523046415,0.4131,3042.6,3042.5,0.72559411]
[1764523046722,0.4131,3042.6,3042.5,0.96646181]
[1764523046929,0.9077,3042.6,3042.5,0.96646181]
[1764523047925,0.9077,3042.6,3042.5,4.25323255]
[1764523049436,0.9077,3042.6,3042.5,4.22036485]
[1764523050493,0.9077,3042.6,3042.5,0.93359411]
[1764523050694,0.9077,3042.6,3042.0,0.001]
[1764523050911,0.002,3042.8,3042.0,3.2882243]
[1764523050912,0.4946,3042.1,3042.0,3.2882243]
[1764523051107,0.4946,3042.1,3042.0,3.4962243]
[1764523051293,0.9511,3042.1,3042.0,3.4962243]
[1764523053298,0.9511,3042.1,3042.0,3.49631097]
[1764523053720,0.9511,3042.1,3042.0,0.001]
[1764523053931,1.37492163,3042.1,3042.0,0.001]
[1764523054131,0.9511,3042.1,3042.0,0.001]
[1764523061039,0.4946,3042.1,3042.0,0.001]
[1764523061338,0.9511,3042.1,3042.0,0.001]
[1764523062811,0.4946,3042.1,3042.0,0.001]
[1764523063135,0.002,3042.2,3042.0,0.001]
[1764523063341,0.002,3042.2,3042.1,0.208]
[1764523063509,0.4585,3042.2,3042.1,0.208]
[1764523063840,0.9531,3042.2,3042.1,0.208]
[1764523065036,0.9531,3042.2,3042.1,4.22079702]
[1764523070913,0.4966,3042.2,3042.1,4.22079702]
[1764523071147,0.9531,3042.2,3042.1,4.22079702]
[1764523071744,0.9531,3042.2,3042.1,4.25366904]
[1764523072847,0.9531,3042.2,3042.1,4.22079702]
[1764523073935,0.9531,3042.2,3042.1,4.25366904]
[1764523074846,0.4966,3042.2,3042.1,4.25366904]
[1764523076450,0.9741,3042.2,3042.1,4.25366904]
[1764523077045,0.4966,3042.2,3042.1,4.25366904]
[1764523077247,0.002,3042.2,3042.1,4.25366904]
[1764523080250,0.002,3042.2,3042.1,4.71276904]
[1764523081227,0.002,3042.2,3042.1,5.62337304]
[1764523081461,0.002,3042.2,3042.1,6.50659687]
[1764523081832,0.002,3042.2,3042.1,6.98409687]
[1764523082032,0.002,3042.2,3042.1,6.95122485]
[1764523082266,0.002,3042.2,3042.1,6.39964158]
[1764523082568,0.002,3042.2,3042.1,6.4325136]
[1764523083227,0.002,3042.2,3042.1,6.10087304]
[1764523084571,0.002,3042.2,3042.1,9.95087304]
[1764523084770,0.002,3042.2,3042.1,10.83348337]
[1764523084935,0.002,3042.2,3042.1,11.16512393]
[1764523085135,1e-08,3042.8,3042.7,0.864604]
[1764523085339,1e-08,3042.8,3042.7,9.74625064]
[1764523085668,1e-08,3042.8,3042.7,10.06481008]
[1764523085829,1e-08,3042.8,3042.7,10.39645064]
[1764523086227,1e-08,3042.8,3042.7,6.06659337]
[1764523086430,1e-08,3042.8,3042.7,9.47909552]
[1764523086627,1e-08,3042.8,3042.7,12.89159767]
[1764523086839,1e-08,3042.8,3042.7,12.55995711]
[1764523087063,1e-08,3042.8,3042.7,9.14745496]
[1764523087367,1e-08,3042.8,3042.7,9.47909552]
[1764523087770,1e-08,3042.8,3042.7,9.14745496]
[1764523088155,1e-08,3042.8,3042.7,12.89159767]
[1764523088691,1e-08,3042.8,3042.7,9.14745496]
[1764523090072,1e-08,3042.8,3042.7,12.86999552]
[1764523090440,1e-08,3042.8,3042.7,13.32909552]
[1764523090643,1e-08,3042.8,3042.7,9.14745496]
[1764523090842,1e-08,3042.8,3042.7,9.01999552]
[1764523093481,0.46850001,3042.8,3042.7,5.14839337]
[1764523093683,0.94600001,3042.8,3042.7,3.80929526]
[1764523093849,0.94600001,3042.8,3042.7,4.01729526]
[1764523094049,0.94600001,3042.8,3042.7,4.74288937]
[1764523094975,1e-08,3042.8,3042.7,7.82375096]
[1764523095178,0.47270001,3042.8,3042.7,4.41124881]
[1764523095374,0.47270001,3042.8,3042.7,7.82375096]
[1764523095576,0.47270001,3042.8,3042.7,4.41124881]
[1764523095874,0.94340001,3042.8,3042.7,4.41124881]
[1764523096673,0.94340001,3042.8,3042.7,4.22014881]
[1764523099676,0.94340001,3042.8,3042.7,5.16354882]
[1764523100923,1e-08,3042.8,3042.7,5.65551436]
[1764523101617,0.47270001,3042.8,3042.7,5.19641436]
[1764523106537,1e-08,3042.8,3042.7,5.65551436]
[1764523106903,1e-08,3042.8,3042.7,13.32352051]
[1764523107103,0.45840001,3042.8,3042.7,9.75069338]
[1764523107636,0.45840001,3042.8,3042.7,5.16354882]
[1764523107939,1e-08,3042.8,3042.7,9.06801651]
[1764523108232,0.92450001,3042.8,3042.7,5.16354882]
[1764523108438,0.92450001,3042.8,3042.7,5.19641436]
[1764523108609,0.46340001,3042.8,3042.7,5.19641436]
[1764523109539,1e-08,3042.8,3042.7,9.47352051]
[1764523109839,1e-08,3042.8,3042.7,9.89975497]
[1764523110137,1e-08,3042.8,3042.7,9.44065497]
[1764523111398,1e-08,3042.8,3042.7,9.89975497]
[1764523112513,1e-08,3042.8,3042.7,9.44065497]
[1764523112711,1e-08,3042.8,3042.7,9.89975497]
[1764523113637,1e-08,3042.8,3042.7,10.23139553]
[1764523114240,1e-08,3042.8,3042.7,9.89975497]
[1764523114734,1e-08,3042.8,3042.7,13.74975497]
[1764523114939,1e-08,3042.8,3042.7,14.08139553]
[1764523116236,1e-08,3042.8,3042.7,13.62229553]
[1764523116438,1e-08,3042.8,3042.7,13.41429553]
[1764523116640,0.92450001,3042.8,3042.7,5.28718938]
[1764523116943,0.92450001,3042.8,3042.7,4.43795471]
[1764523117109,0.92450001,3042.8,3042.7,3.4945547]
[1764523121738,0.46340001,3042.8,3042.7,3.4945547]
[1764523121934,0.92450001,3042.8,3042.7,3.4945547]
[1764523123071,0.46340001,3042.8,3042.7,3.4945547]
[1764523123457,0.92450001,3042.8,3042.7,3.82619526]
[1764523124274,0.92450001,3042.8,3042.7,3.4945547]
[1764523124787,0.92450001,3042.8,3042.7,3.82619526]
[1764523127180,1e-08,3042.8,3042.7,7.23869741]
[1764523127495,0.46340001,3042.8,3042.7,3.82619526]
[1764523127664,0.92450001,3042.8,3042.7,3.82619526]
[1764523128251,0.92450001,3042.8,3042.7,9.28799552]
[1764523128252,1e-08,3042.8,3042.7,9.28799552]
[1764523128778,1e-08,3042.8,3042.7,8.82889552]
[1764523129292,1e-08,3042.8,3042.7,8.96050975]
[1764523129483,1e-08,3042.8,3042.7,9.08796919]
[1764523131195,1e-08,3042.8,3042.7,8.62886919]
[1764523131696,1e-08,3042.8,3042.7,12.47886919]
[1764523132081,0.46340001,3042.8,3042.7,12.35140975]
[1764523132384,1e-08,3042.8,3042.7,9.3980076]
[1764523132895,1e-08,3042.8,3042.7,12.81050975]
[1764523133363,1e-08,3042.8,3042.7,12.47886919]
[1764523135101,1e-08,3042.8,3042.7,12.81050975]
[1764523135507,1e-08,3042.8,3042.7,12.93796919]
[1764523137235,1e-08,3042.8,3042.7,9.08796919]
[1764523137436,1e-08,3042.8,3042.7,8.62886919]
[1764523137641,1e-08,3042.8,3042.7,9.08796919]
[1764523138453,1e-08,3042.8,3042.7,5.0889076]
[1764523138454,0.96830001,3042.8,3042.7,5.0889076]
[1764523138738,0.96830001,3042.8,3042.7,4.55178937]
[1764523142342,0.96830001,3042.8,3042.7,3.4945547]
[1764523142527,0.96830001,3042.8,3042.7,0.208]
[1764523143516,0.96830001,3042.8,3042.6,0.001]
[1764523143715,0.96830001,3042.8,3042.3,0.209]
[1764523143716,4.70133237,3042.7,3042.3,0.209]
[1764523143930,0.4844,3042.4,3042.3,0.209]
[1764523144133,0.4844,3042.4,3042.3,0.001]
[1764523144336,0.9669,3042.4,3042.3,0.001]
[1764523145755,4.37940215,3042.4,3042.3,0.001]
[1764523145958,8.10422113,3042.4,3042.3,0.001]
[1764523146155,4.81734236,3042.4,3042.3,0.001]
[1764523146453,1.40484021,3042.4,3042.3,0.001]
[1764523146659,4.69171898,3042.4,3042.3,0.001]
[1764523147256,8.10857973,3042.4,3042.3,0.001]
[1764523147458,11.73113895,3042.4,3042.0,0.001]
[1764523147671,3.76666075,3042.1,3042.0,0.001]
[1764523148030,4.24916075,3042.1,3042.0,0.001]
[1764523149860,7.53636366,3042.1,3042.0,0.001]
[1764523151131,7.87204411,3042.1,3042.0,0.001]
[1764523151951,11.15924702,3042.1,3041.7,0.001]
[1764523152250,0.6806,3041.8,3041.7,0.001]
[1764523152749,1.1631,3041.8,3041.7,0.001]
[1764523155975,1.1631,3041.8,3041.7,3.2886352]
[1764523156180,1.1631,3041.8,3041.7,0.001]
[1764523156988,0.112872,3042.0,3041.7,0.4601]
[1764523158073,0.112872,3042.0,3041.8,3.28752712]
[1764523158864,0.4858,3041.9,3041.8,3.28752712]
[1764523159071,0.112872,3042.0,3041.8,3.28752712]
[1764523160095,0.112872,3042.0,3041.7,6.57616487]
[1764523160586,0.595372,3042.0,3041.8,0.001]
[1764523160886,0.112872,3042.0,3041.8,0.001]
[1764523162092,0.112872,3042.0,3041.9,3.74651904]
[1764523162272,0.112872,3042.0,3041.9,3.28741904]
[1764523162476,0.598672,3042.0,3041.9,3.28741904]
[1764523164898,0.112872,3042.0,3041.9,0.4591]
[1764523165098,0.112872,3042.0,3041.8,0.001]
[1764523165099,0.600072,3042.0,3041.8,0.72659411]
[1764523165302,0.112872,3042.0,3041.9,0.4591]
[1764523165515,1.143,3041.9,3041.8,0.001]
[1764523169314,1.59730883,3041.9,3041.8,0.001]
[1764523169512,1.143,3041.9,3041.8,0.001]
[1764523174071,0.4872,3041.9,3041.8,0.001]
[1764523174678,0.943,3041.9,3041.8,0.001]
[1764523174966,1.1235,3041.9,3041.8,0.001]
[1764523178675,4.41091904,3041.9,3041.8,0.001]
[1764523178976,5.19389702,3041.9,3041.8,0.001]
[1764523180180,1.90647798,3041.9,3041.8,0.001]
[1764523184178,1.45067798,3041.9,3041.3,3.18018267]
[1764523184387,0.4558,3041.8,3041.3,3.18018267]
[1764523184747,0.96347798,3041.9,3041.3,3.18018267]
[1764523184947,0.42528057,3041.8,3041.3,3.18018267]
[1764523185603,0.88108057,3041.8,3041.3,3.18018267]
[1764523185796,0.4558,3041.7,3041.3,3.18018267]
[1764523186799,0.4983,3041.4,3041.3,3.18018267]
[1764523186988,0.4558,3041.7,3041.3,3.18018267]
[1764523189901,0.002,3042.0,3041.6,0.4591]
[1764523190198,0.1805,3041.9,3041.7,0.208]
[1764523190361,0.6363,3041.9,3041.7,0.208]
[1764523190568,0.4983,3041.8,3041.7,0.208]
[1764523192508,0.6363,3041.9,3041.7,3.49559915]
[1764523192820,0.002,3042.0,3041.7,3.49559915]
[1764523193029,0.4525,3042.0,3041.7,3.49559915]
[1764523193326,0.4525,3042.0,3041.7,0.208]
[1764523194218,0.4525,3042.0,3041.7,3.495625]
[1764523195299,0.4525,3042.0,3041.7,0.208]
[1764523197726,0.4503,3041.8,3041.7,0.208]
[1764523199415,0.9008,3041.8,3041.7,0.208]
[1764523200193,0.002,3042.0,3041.7,0.4591]
[1764523200405,0.4503,3041.8,3041.5,0.208]
[1764523200799,0.9008,3041.8,3041.5,0.208]
[1764523202432,1.33955134,3041.8,3041.5,0.208]
[1764523202633,0.88905134,3041.8,3041.5,0.208]
[1764523202933,0.409,3041.6,3041.5,0.208]
[1764523203406,0.8595,3041.6,3041.5,0.208]
[1764523203995,0.8595,3041.6,3041.3,0.001]
[1764523204295,0.41470335,3041.6,3041.3,0.001]
[1764523204494,0.4505,3041.8,3041.3,3.28906474]
[1764523205225,0.1973,3041.9,3041.3,3.74816474]
[1764523205599,0.4525,3042.0,3041.4,0.4591]
[1764523205600,0.002,3042.0,3041.4,0.4591]
[1764523206795,0.1973,3041.9,3041.3,0.001]
[1764523207328,0.4505,3041.8,3041.3,0.001]
[1764523207994,0.4503,3041.4,3041.3,0.001]
[1764523208426,4.32024322,3041.4,3041.3,0.001]
[1764523208628,4.75226754,3041.4,3041.3,0.001]
[1764523209002,8.04022703,3041.4,3041.3,0.001]
[1764523210529,8.37590748,3041.4,3041.3,0.001]
[1764523211407,8.04022703,3041.4,3041.3,0.001]
[1764523211608,8.37590748,3041.4,3041.3,0.001]
[1764523213031,8.04022703,3041.4,3041.3,0.001]
[1764523213610,8.37590748,3041.4,3041.3,0.001]
[1764523214946,4.62078381,3041.4,3041.3,0.001]
[1764523215112,0.4525,3041.8,3041.3,0.4601]
[1764523215441,0.002,3041.8,3041.3,4.20726539]
[1764523216029,0.002,3041.8,3041.3,4.20726478]
[1764523217032,0.002,3041.8,3041.7,0.4591]
[1764523225516,0.002,3041.8,3041.3,0.6681]
[1764523225716,0.002,3041.8,3041.4,3.74703447]
[1764523226631,0.4909,3041.8,3041.3,0.209]
[1764523226781,0.465,3041.5,3041.3,0.209]
[1764523226939,0.4909,3041.8,3041.3,3.4970411]
[1764523227139,0.4909,3041.8,3041.4,0.4591]
[1764523227696,0.4909,3041.8,3041.4,3.74705894]
[1764523227983,0.4909,3041.8,3041.4,0.4591]
[1764523228847,0.4909,3041.8,3041.3,3.49700565]
[1764523231264,0.002,3041.8,3041.3,6.78507325]
[1764523231469,0.002,3041.8,3041.7,0.4591]
[1764523236001,0.467,3041.8,3041.4,3.28790893]
[1764523236372,0.002,3041.8,3041.4,3.74700893]
[1764523236565,0.002,3041.8,3041.4,7.03496842]
[1764523236869,0.002,3041.8,3041.4,3.74700893]
[1764523237381,0.002,3041.8,3041.4,7.03496842]
[1764523237577,0.002,3041.8,3041.4,3.74700893]
[1764523238099,0.002,3041.8,3041.4,7.03496842]
[1764523238312,0.002,3041.8,3041.5,0.4591]
[1764523239705,0.002,3041.8,3041.5,3.74686667]
[1764523240194,0.002,3041.8,3041.7,0.4591]
[1764523240367,0.002,3041.8,3041.7,0.6671]
[1764523240775,0.002,3041.8,3041.7,1.1262]
[1764523241704,0.002,3041.8,3041.7,4.4138352]
[1764523246929,0.002,3041.8,3041.7,5.13942931]
[1764523247219,0.002,3041.8,3041.7,4.93562438]
[1764523247427,0.002,3041.8,3041.7,4.81198382]
[1764523247584,0.002,3041.8,3041.7,4.68032931]
[1764523247781,0.002,3041.8,3041.7,5.13942931]
[1764523249885,0.002,3041.8,3041.7,8.55887253]
[1764523250419,0.002,3041.8,3041.7,8.96437653]
[1764523250713,0.002,3041.8,3041.7,9.09603018]
[1764523252185,0.002,3041.8,3041.7,5.21748696]
[1764523252381,0.002,3041.8,3041.7,5.67658696]
[1764523253402,0.002,3041.8,3041.7,5.21748696]
[1764523255690,0.002,3041.8,3041.7,5.67658696]
[1764523255888,0.002,3041.8,3041.7,5.27108296]
[1764523257336,0.002,3041.8,3041.7,4.81198296]
[1764523259796,0.002,3041.8,3041.7,4.71320566]
[1764523260465,0.002,3041.8,3041.7,4.25410566]
[1764523260747,0.4662,3041.8,3041.7,4.25410566]
[1764523261047,0.002,3041.8,3041.7,4.22122931]
[1764523261219,0.002,3041.8,3041.7,4.25410566]
[1764523261419,0.002,3041.8,3041.7,4.71320566]
[1764523262037,0.9355,3041.8,3041.7,0.208]
[1764523262238,0.9355,3041.8,3041.3,0.001]
[1764523262439,0.4642,3041.4,3041.3,0.001]
[1764523262955,0.9335,3041.4,3041.3,0.001]
[1764523273094,4.22145949,3041.4,3041.3,0.001]
[1764523273930,0.9335,3041.4,3041.3,0.001]
[1764523274130,4.22145949,3041.4,3041.3,0.001]
[1764523274328,4.97239017,3041.4,3041.3,0.001]
[1764523277565,5.30807062,3041.4,3041.3,0.001]
[1764523278036,4.97239017,3041.4,3041.3,0.001]
[1764523278953,5.30807062,3041.4,3041.3,0.001]
[1764523279461,5.31007062,3041.4,3041.3,0.001]
[1764523279661,1.68643068,3041.4,3041.3,0.001]
[1764523281691,0.9355,3041.4,3041.3,0.001]
[1764523285450,0.002,3041.4,3041.3,0.001]
[1764523286489,0.4808,3041.4,3041.3,0.001]
[1764523286733,0.9635,3041.4,3041.3,0.001]
[1764523287962,4.25145949,3041.4,3041.3,0.001]
[1764523288161,5.34719306,3041.4,3041.3,0.001]
[1764523289990,5.68287351,3041.4,3041.3,0.001]
[1764523290996,5.34719306,3041.4,3041.3,0.001]
[1764523291991,5.68287351,3041.4,3041.3,0.001]
[1764523292993,0.4827,3041.3,3040.7,0.163]
[1764523293201,1.2710833,3041.2,3040.7,0.163]
[1764523293491,0.4777,3040.8,3040.7,0.163]
[1764523294062,0.4827,3041.1,3040.7,0.163]
[1764523294261,0.4788,3040.8,3040.7,0.163]
[1764523296200,0.4827,3041.0,3040.7,0.163]
[1764523296501,0.9495007,3041.0,3040.7,0.163]
[1764523296707,0.4827,3041.0,3040.7,0.163]
[1764523296906,0.4788,3040.8,3040.7,0.163]
[1764523297209,0.4788,3040.8,3040.6,0.001]
[1764523297502,0.8758,3040.7,3040.6,0.001]
[1764523297901,0.3931,3040.7,3040.6,0.001]
[1764523298902,0.8758,3040.7,3040.6,0.001]
[1764523299105,5.62621859,3040.7,3040.6,0.001]
[1764523299709,5.75798717,3040.7,3040.6,0.001]
[1764523300412,5.42230672,3040.7,3040.6,0.001]
[1764523302685,5.75798717,3040.7,3040.6,0.001]
[1764523303000,5.42230672,3040.7,3040.6,0.001]
[1764523304812,5.75798717,3040.7,3040.6,0.001]
[1764523305544,5.42230672,3040.7,3040.6,0.001]
[1764523306062,5.29053814,3040.7,3040.6,0.001]
[1764523308529,6.8573167,3040.7,3040.6,0.001]
[1764523308742,6.88910785,3040.7,3040.6,0.001]
[1764523309052,7.19710785,3040.7,3040.6,0.001]
[1764523309250,7.09710785,3040.7,3040.6,0.001]
[1764523309739,7.19710785,3040.7,3040.6,0.001]
[1764523313051,7.09710785,3040.7,3040.6,0.001]
[1764523313252,7.19710785,3040.7,3040.6,0.001]
[1764523314753,7.19910785,3040.7,3040.6,0.001]
[1764523315323,7.09910785,3040.7,3040.6,0.001]
[1764523316023,7.19910785,3040.7,3040.6,0.001]
[1764523317620,7.09910785,3040.7,3040.6,0.001]
[1764523317954,7.19910785,3040.7,3040.6,0.001]
[1764523320360,7.19910785,3040.7,3040.2,0.001]
[1764523320361,0.74118445,3040.3,3040.2,0.001]
[1764523320657,5.56974364,3040.3,3040.2,0.001]
[1764523320832,5.977314,3040.3,3040.2,0.001]
[1764523321034,6.31712383,3040.3,3040.2,0.001]
[1764523321426,5.84963355,3040.3,3040.2,0.001]
[1764523321626,0.13179767,3040.4,3040.2,0.4601]
[1764523321827,4.0145733,3040.5,3040.2,0.5978]
[1764523322065,0.002,3040.7,3040.4,0.4591]
[1764523322230,0.21,3040.7,3040.6,0.4591]
[1764523322431,0.002,3040.7,3040.6,0.4591]
[1764523322630,0.002,3040.7,3040.6,0.9182]
[1764523327247,0.002,3040.7,3040.6,0.4591]
[1764523329549,0.002,3040.7,3040.3,0.4591]
[1764523329751,0.002,3040.7,3040.6,0.4591]
[1764523329946,0.002,3040.7,3040.3,0.4591]
[1764523330465,0.002,3040.7,3040.6,0.4591]
[1764523330872,0.002,3040.7,3040.6,0.9182]
[1764523332052,0.002,3040.7,3040.6,4.20702457]
[1764523332264,0.002,3040.7,3040.6,0.9182]
[1764523333673,0.002,3040.7,3040.6,4.20702457]
[1764523334976,0.002,3040.7,3040.6,4.53866513]
[1764523335176,0.002,3040.7,3040.6,4.20702457]
[1764523337980,0.002,3041.1,3040.7,0.72559411]
[1764523338156,0.002,3041.1,3041.0,0.4591]
[1764523338355,0.002,3041.1,3041.0,3.74749197]
[1764523338563,0.002,3041.1,3041.0,4.20659197]
[1764523339081,0.002,3041.1,3041.0,4.93218608]
[1764523340074,0.002,3041.1,3041.0,8.35144094]
[1764523343059,0.002,3041.1,3041.0,8.75694494]
[1764523343264,0.002,3041.1,3041.0,12.50784036]
[1764523343461,0.002,3041.8,3041.3,0.4591]
[1764523343692,0.002,3042.1,3041.9,0.73714456]
[1764523343892,0.002,3042.1,3041.9,5.54909353]
[1764523344067,0.002,3042.1,3041.9,6.00819353]
[1764523344390,0.002,3042.1,3041.9,5.67655297]
[1764523344605,0.002,3042.1,3041.9,6.00819353]
[1764523345309,0.002,3042.1,3041.9,5.13921315]
[1764523345491,0.002,3042.1,3041.9,4.68011315]
[1764523346904,0.002,3042.1,3041.9,5.13921315]
[1764523349367,0.002,3042.1,3041.9,5.47085371]
[1764523352002,0.002,3042.1,3041.9,4.68011315]
[1764523352167,0.002,3042.1,3041.9,5.13921315]
[1764523353701,0.002,3042.1,3041.9,5.13427315]
[1764523354869,0.002,3042.1,3041.9,4.67517315]
[1764523355513,0.002,3042.1,3041.9,4.70804734]
[1764523358629,0.002,3042.1,3041.9,5.16224734]
[1764523359425,0.002,3042.1,3041.9,4.70804734]
[1764523363933,0.002,3042.1,3041.9,4.25388734]
[1764523364107,0.9846,3042.0,3041.9,0.208]
[1764523364312,0.4873,3042.0,3041.9,3.49541904]
[1764523366425,0.4873,3042.0,3041.9,3.49641904]
[1764523368717,0.9846,3042.0,3041.9,0.209]
[1764523369014,0.9846,3042.0,3041.9,3.49641904]
[1764523369403,0.4873,3042.0,3041.9,3.49641904]
[1764523372817,0.9823,3042.0,3041.9,3.49641904]
[1764523374131,0.4873,3042.0,3041.9,3.49641904]
[1764523375259,0.9823,3042.0,3041.9,3.49641904]
[1764523379551,0.9823,3042.0,3041.9,0.001]
[1764523379721,1.75157029,3042.0,3041.9,0.001]
[1764523379922,0.9823,3042.0,3041.9,0.001]
[1764523380557,0.002,3042.0,3041.9,3.73871904]
[1764523381325,0.002,3042.0,3041.9,3.28841904]
[1764523382164,0.002,3042.0,3041.9,0.001]
[1764523382338,0.002,3042.0,3041.9,0.4513]
[1764523382659,0.002,3042.0,3041.9,0.001]
[1764523383534,0.002,3042.0,3041.9,0.4513]
[1764523384229,0.002,3042.0,3041.9,3.73871904]
[1764523386230,0.002,3042.0,3041.9,3.28841904]
[1764523386926,0.4591,3042.0,3041.9,3.28841904]
[1764523387166,0.9541,3042.0,3041.9,0.001]
[1764523394569,4.24141097,3042.0,3041.9,0.001]
[1764523394780,1.70736159,3042.0,3041.9,0.001]
[1764523395087,4.99467256,3042.0,3041.9,0.001]
[1764523395458,1.70736159,3042.0,3041.9,0.001]
[1764523395688,1.21236159,3042.0,3041.9,0.001]
[1764523395889,0.3784,3042.0,3041.9,0.001]
[1764523396098,0.8734,3042.0,3041.9,0.001]
[1764523400387,0.002,3042.0,3041.9,0.001]
[1764523402858,0.002,3042.0,3041.9,0.4552]
[1764523403967,0.002,3042.0,3041.9,3.74261904]
[1764523404169,0.002,3042.0,3041.9,4.19681904]
[1764523404492,0.002,3042.0,3041.9,3.74261904]
[1764523406692,0.002,3042.0,3041.9,4.19681904]
[1764523407361,0.002,3042.0,3041.9,4.92241315]
[1764523410596,0.002,3042.0,3041.9,4.95528734]
[1764523411968,0.002,3042.0,3041.9,4.92241315]
[1764523412167,0.002,3042.0,3041.9,4.46821315]
[1764523412566,0.4996,3042.0,3041.9,0.209]
[1764523412769,0.9699,3042.0,3041.9,3.49641904]
[1764523412986,0.4996,3042.0,3041.9,3.49641904]
[1764523413910,0.002,3042.0,3041.9,3.49641904]
[1764523415469,0.9699,3042.0,3041.9,0.209]
[1764523416093,0.9699,3042.0,3041.9,0.001]
[1764523416777,1.39600099,3042.0,3041.9,0.001]
[1764523419206,0.9699,3042.0,3041.9,0.001]
[1764523419911,0.002,3042.0,3041.9,0.001]
[1764523420098,0.002,3042.0,3041.9,0.4552]
[1764523422012,0.002,3042.0,3041.9,3.28841904]
[1764523422208,0.9699,3042.0,3041.9,0.001]
[1764523425117,4.68331153,3042.0,3041.9,0.001]
[1764523425788,1.39600056,3042.0,3041.9,0.001]
[1764523425988,0.9699,3042.0,3041.9,0.001]
[1764523426601,4.25721097,3042.0,3041.9,0.001]
[1764523428019,4.59289142,3042.0,3041.9,0.001]
[1764523429216,4.25721097,3042.0,3041.9,0.001]
[1764523433438,0.002,3042.0,3041.9,0.001]
[1764523434111,0.002,3042.0,3041.9,0.4552]
[1764523434626,0.002,3042.0,3041.9,0.001]
[1764523434627,0.458,3042.0,3041.9,0.001]
[1764523435035,0.9103,3042.0,3041.9,0.001]
[1764523435835,0.458,3042.0,3041.9,0.001]
[1764523439330,0.002,3042.0,3041.9,0.001]
[1764523440131,0.002,3042.0,3041.9,0.4552]
[1764523440702,0.002,3042.0,3041.9,4.19681904]
[1764523441431,0.458,3042.0,3041.9,0.001]
[1764523441638,4.32769932,3042.0,3041.9,0.001]
[1764523442136,7.61501029,3042.0,3041.9,0.001]
[1764523450312,7.95069074,3042.0,3041.9,0.001]
[1764523450519,6.00699363,3042.0,3041.9,0.001]
[1764523450735,9.42439295,3042.0,3041.9,0.001]
[1764523451522,5.87931318,3042.0,3041.9,0.001]
[1764523452460,9.63239295,3042.0,3041.9,0.001]
[1764523454457,9.63359311,3042.0,3041.9,0.001]
[1764523456094,0.1,3041.8,3041.5,0.001]
[1764523456255,4.03329948,3041.6,3041.5,0.001]